bitfinex/quotes_BTCUSD_20250825
["timestamp","ask_amount","ask_price","bid_price","bid_amount"]
[1756124604146,0.026943,111580.0,111570.0,0.24992549]
[1756124604359,0.026943,111580.0,111570.0,0.24768475]
[1756124604574,0.18869734,111590.0,111570.0,0.42694398]
[1756124604789,0.002,111580.0,111570.0,0.24768475]
[1756124605010,0.002,111580.0,111570.0,0.42604824]
[1756124605459,0.03689238,111590.0,111570.0,0.42604824]
[1756124605460,0.03889238,111590.0,111570.0,0.42604824]
[1756124605683,0.03889238,111590.0,111570.0,0.4249544]
[1756124606207,0.21812011,111590.0,111570.0,0.4249544]
[1756124606419,0.21612011,111590.0,111570.0,0.4249544]
[1756124606822,0.23014483,111590.0,111570.0,0.4249544]
[1756124607056,0.23014483,111590.0,111580.0,0.00299]
[1756124607295,0.23014483,111590.0,111580.0,0.15564]
[1756124607296,0.23217483,111590.0,111580.0,0.15564]
[1756124608877,0.23217483,111590.0,111580.0,0.1608]
[1756124609699,0.23217483,111590.0,111580.0,0.15556]
[1756124610214,0.23217483,111590.0,111570.0,0.08987475]
[1756124610425,0.28998556,111590.0,111580.0,0.001]
[1756124611440,0.29190556,111590.0,111580.0,0.001]
[1756124611823,0.27788084,111590.0,111580.0,0.001]
[1756124612792,0.27596084,111590.0,111580.0,0.001]
[1756124613255,0.21785011,111590.0,111580.0,0.001]
[1756124614502,0.21977011,111590.0,111580.0,0.001]
[1756124614717,0.21785011,111590.0,111580.0,0.001]
[1756124615136,0.2318749,111590.0,111580.0,0.001]
[1756124615398,0.5737949,111590.0,111580.0,0.001]
[1756124615614,0.66066455,111590.0,111580.0,0.001]
[1756124619100,0.66066455,111590.0,111580.0,0.817703]
[1756124620338,0.7269949,111590.0,111580.0,0.817703]
[1756124620536,0.7169949,111590.0,111580.0,0.817703]
[1756124622222,0.72773582,111590.0,111580.0,0.817703]
[1756124623650,0.72581582,111590.0,111580.0,0.817703]
[1756124623861,0.72565582,111590.0,111580.0,0.820633]
[1756124624275,0.72565582,111590.0,111580.0,0.817703]
[1756124624899,0.57069582,111590.0,111580.0,0.817703]
[1756124625112,0.72565582,111590.0,111580.0,0.817703]
[1756124625930,0.71163103,111590.0,111580.0,0.817703]
[1756124627624,0.70948103,111590.0,111580.0,0.822583]
[1756124627845,0.70944103,111590.0,111580.0,0.822583]
[1756124628062,0.3754133,111590.0,111580.0,0.822583]
[1756124628829,0.55464082,111590.0,111580.0,0.822583]
[1756124629028,0.56866549,111590.0,111580.0,0.822583]
[1756124630392,0.38943797,111590.0,111580.0,0.822583]
[1756124630572,0.56866549,111590.0,111580.0,0.822583]
[1756124631762,0.56866549,111590.0,111580.0,0.821583]
[1756124632034,0.3754133,111590.0,111580.0,0.821583]
[1756124633205,0.55464082,111590.0,111580.0,0.821583]
[1756124633544,0.3754133,111590.0,111580.0,0.822583]
[1756124633781,0.55464082,111590.0,111580.0,0.824583]
[1756124633969,0.00048084,111590.0,111580.0,1.17926199]
[1756124634376,0.00048084,111590.0,111580.0,1.36087899]
[1756124634801,0.00048084,111590.0,111580.0,1.35987899]
[1756124635536,0.00048084,111590.0,111580.0,1.21019899]
[1756124635775,0.00048084,111590.0,111580.0,1.36487899]
[1756124635960,0.00048084,111590.0,111580.0,1.21019899]
[1756124636177,0.00048084,111590.0,111580.0,1.36487899]
[1756124636848,0.00048084,111590.0,111580.0,1.13909736]
[1756124637077,0.00048084,111590.0,111580.0,1.29377736]
[1756124639984,0.00048084,111590.0,111580.0,2.15726479]
[1756124640251,0.00048084,111590.0,111580.0,2.15526479]
[1756124640492,0.00048084,111590.0,111580.0,2.69526479]
[1756124640705,0.00048084,111590.0,111580.0,2.77769262]
[1756124640920,0.00048084,111590.0,111580.0,1.92327967]
[1756124641146,0.00048084,111590.0,111580.0,1.92127967]
[1756124641368,0.00048084,111590.0,111580.0,2.77585262]
[1756124641577,0.00048084,111590.0,111580.0,2.77385262]
[1756124642266,0.00048084,111590.0,111580.0,2.69842479]
[1756124642446,0.00048084,111590.0,111580.0,1.86226184]
[1756124642669,0.00048084,111590.0,111580.0,2.71667479]
[1756124642876,0.00048084,111590.0,111580.0,1.64421184]
[1756124643081,0.00048084,111590.0,111580.0,1.65321184]
[1756124643305,0.00048084,111590.0,111580.0,1.49517184]
[1756124643519,0.00048084,111590.0,111580.0,1.65521184]
[1756124644177,0.00048084,111590.0,111580.0,1.65021184]
[1756124644384,0.00048084,111590.0,111580.0,1.65421184]
[1756124645672,0.00048084,111590.0,111580.0,1.64921184]
[1756124645880,0.00048084,111590.0,111580.0,1.64021184]
[1756124646302,0.00048084,111590.0,111580.0,1.64721184]
[1756124649159,0.00048084,111590.0,111580.0,2.50162479]
[1756124652788,0.00048084,111590.0,111580.0,2.90162479]
[1756124653275,0.00048084,111590.0,111580.0,2.50162479]
[1756124654537,0.00048084,111590.0,111580.0,1.64721184]
[1756124654955,0.00048084,111590.0,111580.0,2.50162479]
[1756124656212,0.00048084,111590.0,111580.0,1.64721184]
[1756124656414,0.00048084,111590.0,111580.0,2.50162479]
[1756124657445,0.00048084,111590.0,111580.0,2.90162479]
[1756124658457,0.00048084,111590.0,111580.0,2.50162479]
[1756124658888,0.00048084,111590.0,111580.0,1.64721184]
[1756124659135,0.00048084,111590.0,111580.0,2.04721184]
[1756124659421,0.00048084,111590.0,111580.0,2.90162479]
[1756124659583,0.00048084,111590.0,111580.0,2.50162479]
[1756124659976,0.00048084,111590.0,111580.0,2.58205262]
[1756124660168,0.00048084,111590.0,111580.0,2.98205262]
[1756124661387,0.00048084,111590.0,111580.0,3.19745262]
[1756124662258,0.00048084,111590.0,111580.0,2.34303967]
[1756124662458,0.00048084,111590.0,111580.0,3.19745262]
[1756124663780,0.0002,111620.0,111580.0,3.19745262]
[1756124663989,0.02323537,111630.0,111620.0,0.19662837]
[1756124664208,0.02365755,111630.0,111620.0,0.43835312]
[1756124664821,0.01450325,111630.0,111620.0,0.43835312]
[1756124665051,0.00410425,111630.0,111620.0,0.43835312]
[1756124665478,0.00573608,111640.0,111620.0,0.43835312]
[1756124665677,0.03093455,111640.0,111630.0,0.1548]
[1756124666094,0.02937795,111640.0,111630.0,0.3339633]
[1756124666294,0.0172424,111640.0,111630.0,0.43829707]
[1756124666504,0.00839951,111640.0,111630.0,0.43829707]
[1756124666753,0.00839951,111640.0,111630.0,0.44147707]
[1756124666934,0.68111519,111660.0,111640.0,0.17914404]
[1756124667142,0.57123937,111660.0,111650.0,0.15472]
[1756124667349,0.40098424,111660.0,111650.0,0.15472]
[1756124667593,0.63901801,111660.0,111650.0,0.15468]
[1756124667794,0.65303442,111660.0,111650.0,0.15468]
[1756124668015,0.59411582,111660.0,111650.0,0.15468]
[1756124668216,0.59411582,111660.0,111630.0,0.29662956]
[1756124668418,0.002,111650.0,111640.0,0.15468]
[1756124668821,0.20632939,111650.0,111640.0,0.15468]
[1756124669032,0.28185409,111650.0,111630.0,0.29662956]
[1756124669259,0.10272288,111650.0,111640.0,0.1546]
[1756124669465,0.02519818,111650.0,111640.0,0.1546]
[1756124669869,0.02519818,111650.0,111640.0,0.1566]
[1756124670456,0.02519818,111650.0,111640.0,0.1576]
[1756124670659,0.02719818,111650.0,111640.0,0.1576]
[1756124670861,0.04513565,111650.0,111640.0,0.1576]
[1756124671162,0.02719818,111650.0,111640.0,0.1576]
[1756124671360,0.02519818,111650.0,111640.0,0.1576]
[1756124671595,0.02519818,111650.0,111640.0,0.1556]
[1756124671832,0.02519818,111650.0,111640.0,0.33474725]
[1756124672332,0.02519818,111650.0,111640.0,0.18014725]
[1756124672540,0.02519818,111650.0,111640.0,0.33792725]
[1756124672724,0.06214277,111680.0,111660.0,0.1791151]
[1756124672986,5.232544,111670.0,111660.0,0.33371517]
[1756124673202,0.08906577,111680.0,111660.0,0.33371517]
[1756124673418,5.232544,111670.0,111660.0,0.33371517]
[1756124673635,0.39465945,111680.0,111660.0,0.33371517]
[1756124673884,0.01106671,111670.0,111660.0,0.33371517]
[1756124674085,0.002,111670.0,111660.0,0.33371517]
[1756124674379,0.39465945,111680.0,111660.0,0.44122894]
[1756124675042,0.36773645,111680.0,111660.0,0.44122894]
[1756124675467,0.027119,111690.0,111670.0,0.18227913]
[1756124675687,0.0022,111690.0,111680.0,0.1546]
[1756124676321,0.0022,111690.0,111680.0,0.33368309]
[1756124676506,0.02503925,111690.0,111680.0,0.1546]
[1756124677385,0.02503925,111690.0,111680.0,0.33368309]
[1756124677598,0.02503925,111690.0,111680.0,0.1546]
[1756124678017,0.02503925,111690.0,111680.0,0.15778]
[1756124678203,0.02503925,111690.0,111680.0,0.33786309]
[1756124678491,0.02303925,111690.0,111680.0,0.33992309]
[1756124679116,0.02303925,111690.0,111680.0,0.00624]
[1756124679339,0.07726837,111690.0,111680.0,0.16184]
[1756124679566,0.01421205,111690.0,111680.0,0.44749539]
[1756124679777,0.01421205,111690.0,111680.0,0.44525686]
[1756124679991,0.01421205,111690.0,111680.0,0.11357377]
[1756124680241,0.01621205,111690.0,111680.0,0.10833377]
[1756124680453,0.01621205,111690.0,111680.0,0.29274686]
[1756124680454,0.01421205,111690.0,111680.0,0.29274686]
[1756124680664,0.01421205,111690.0,111680.0,0.11366377]
[1756124680907,0.01421205,111690.0,111680.0,0.15856]
[1756124681117,0.03575839,111690.0,111680.0,0.15856]
[1756124681749,0.21482545,111690.0,111680.0,0.15856]
[1756124681966,0.03375839,111690.0,111680.0,0.15856]
[1756124682187,0.02174634,111690.0,111680.0,0.15856]
[1756124682644,0.2008134,111690.0,111680.0,0.15856]
[1756124682854,0.01974634,111690.0,111680.0,0.15856]
[1756124683062,0.02174634,111690.0,111680.0,0.16174]
[1756124683906,0.02174634,111690.0,111680.0,0.16389]
[1756124684762,0.03009859,111690.0,111680.0,0.16389]
[1756124684945,0.03009859,111690.0,111680.0,0.16489]
[1756124685088,0.02174634,111690.0,111680.0,0.16489]
[1756124685292,0.03009896,111690.0,111680.0,0.16489]
[1756124685722,0.04411032,111690.0,111680.0,0.16489]
[1756124685901,0.04410934,111690.0,111680.0,0.00818]
[1756124686116,0.04410934,111690.0,111680.0,0.15956]
[1756124686516,0.04710934,111690.0,111680.0,0.15956]
[1756124687532,0.04710934,111690.0,111680.0,0.34182309]
[1756124688047,0.04710934,111690.0,111680.0,0.18726309]
[1756124688253,0.04710934,111690.0,111680.0,0.34178309]
[1756124688469,0.027563,111690.0,111680.0,0.34178309]
[1756124688721,0.025563,111690.0,111680.0,0.34393309]
[1756124688926,0.022563,111690.0,111680.0,0.34393309]
[1756124689348,0.022563,111690.0,111680.0,0.18941309]
[1756124689591,0.022563,111690.0,111680.0,0.34393309]
[1756124689974,0.022563,111690.0,111680.0,0.44826686]
[1756124691718,0.00855164,111690.0,111680.0,0.44826686]
[1756124691925,0.00855539,111690.0,111680.0,0.44826686]
[1756124692105,0.00855539,111690.0,111680.0,0.44726686]
[1756124692341,0.00855539,111690.0,111680.0,0.44826686]
[1756124692930,0.00855539,111690.0,111680.0,0.44526686]
[1756124693363,0.00855539,111690.0,111680.0,0.44826686]
[1756124693623,0.03855539,111690.0,111680.0,0.44826686]
[1756124694011,0.03855539,111690.0,111680.0,0.44726686]
[1756124694464,0.03855539,111690.0,111680.0,0.44826686]
[1756124695169,0.05257272,111690.0,111680.0,0.44826686]
[1756124697970,0.05257272,111690.0,111680.0,0.29374686]
[1756124698180,0.05257272,111690.0,111680.0,0.44826686]
[1756124698863,0.05257272,111690.0,111680.0,0.29374686]
[1756124699088,0.05257272,111690.0,111680.0,0.44822686]
[1756124700296,0.05257272,111690.0,111680.0,0.29374686]
[1756124700512,0.05257272,111690.0,111680.0,0.44822686]
[1756124701794,0.05257272,111690.0,111680.0,1.26419886]
[1756124702040,0.03856179,111690.0,111680.0,1.10971886]
[1756124702254,0.05533722,111690.0,111680.0,1.26419886]
[1756124704003,0.05537565,111690.0,111680.0,1.26419886]
[1756124704489,0.05538407,111690.0,111680.0,1.26419886]
[1756124704882,0.05538827,111690.0,111680.0,1.26419886]
[1756124705570,0.05538827,111690.0,111680.0,1.10971886]
[1756124705783,0.05538827,111690.0,111680.0,1.26419886]
[1756124706011,0.06939902,111690.0,111680.0,1.26419886]
[1756124707045,0.06939902,111690.0,111680.0,1.10971886]
[1756124707266,0.06939902,111690.0,111680.0,1.26419886]
[1756124707918,0.06939902,111690.0,111680.0,1.10971886]
[1756124708134,0.06939902,111690.0,111680.0,1.26419886]
[1756124709219,0.06939902,111690.0,111680.0,1.10971886]
[1756124709438,0.06939902,111690.0,111680.0,1.26419886]
[1756124709860,0.06939902,111690.0,111680.0,1.10971886]
[1756124710076,0.06939902,111690.0,111680.0,1.26415886]
[1756124710327,0.06939902,111690.0,111680.0,1.10971886]
[1756124710555,0.06939902,111690.0,111680.0,1.26415886]
[1756124710843,0.06939902,111690.0,111680.0,1.10971886]
[1756124711060,0.06939902,111690.0,111680.0,1.26415886]
[1756124711924,0.06939902,111690.0,111680.0,1.10971886]
[1756124712142,0.06939902,111690.0,111680.0,1.26415886]
[1756124712577,0.05538827,111690.0,111680.0,1.26415886]
[1756124713674,0.04700862,111690.0,111680.0,1.26415886]
[1756124713894,0.18786603,111710.0,111690.0,0.01744902]
[1756124714138,0.06503131,111710.0,111700.0,0.15963]
[1756124714357,0.24406631,111710.0,111700.0,0.15963]
[1756124714812,0.24406631,111710.0,111700.0,0.15753]
[1756124715465,0.18834643,111710.0,111700.0,0.15753]
[1756124716119,0.21526043,111710.0,111700.0,0.15753]
[1756124716542,0.22927026,111710.0,111700.0,0.15753]
[1756124717861,0.04140425,111710.0,111700.0,0.15963]
[1756124718082,0.04140425,111710.0,111700.0,0.34091915]
[1756124718405,0.01449025,111710.0,111700.0,0.33868102]
[1756124719304,0.01449025,111710.0,111700.0,0.34068102]
[1756124719952,0.01449025,111710.0,111700.0,0.16163]
[1756124720810,0.01449025,111710.0,111700.0,0.16263]
[1756124721021,0.01449025,111710.0,111700.0,0.17807902]
[1756124721247,0.01449025,111710.0,111700.0,0.17707902]
[1756124721459,0.01449025,111710.0,111700.0,0.18007902]
[1756124721696,0.01449025,111710.0,111700.0,0.18107902]
[1756124721922,0.07142636,111710.0,111700.0,0.18107902]
[1756124722144,0.25046136,111710.0,111700.0,0.18107902]
[1756124722366,0.07142636,111710.0,111700.0,0.18107902]
[1756124722622,0.01449025,111710.0,111700.0,0.18107902]
[1756124724103,0.19352525,111710.0,111700.0,0.02453902]
[1756124724334,0.01449025,111710.0,111700.0,0.17897902]
[1756124724560,0.19352525,111710.0,111700.0,0.17588902]
[1756124724766,0.01449025,111710.0,111700.0,0.18107902]
[1756124725364,0.01449025,111710.0,111700.0,0.02663902]
[1756124725565,0.01449025,111710.0,111700.0,0.18107902]
[1756124725821,0.25046136,111710.0,111700.0,0.004]
[1756124725954,0.23645153,111710.0,111700.0,0.004]
[1756124726378,0.26336453,111710.0,111700.0,0.004]
[1756124727260,0.08432953,111710.0,111700.0,0.00709]
[1756124727484,0.08432953,111710.0,111700.0,0.00819]
[1756124727897,0.08432953,111710.0,111700.0,0.00919]
[1756124728100,0.08432953,111710.0,111700.0,0.00619]
[1756124728511,0.08432953,111710.0,111700.0,0.00819]
[1756124728980,0.09833894,111710.0,111700.0,0.00819]
[1756124730420,0.09833894,111710.0,111700.0,0.02563902]
[1756124731730,0.02739342,111710.0,111700.0,0.02563902]
[1756124731960,0.20642842,111710.0,111700.0,0.02563902]
[1756124732169,0.20642842,111710.0,111700.0,0.003]
[1756124733696,0.20642842,111710.0,111700.0,0.001]
[1756124734857,0.20642842,111710.0,111700.0,0.00309]
[1756124735526,0.22043813,111710.0,111700.0,0.00309]
[1756124735796,0.27621197,111710.0,111700.0,0.00309]
[1756124736017,0.09717697,111710.0,111700.0,0.02363902]
[1756124736444,0.09717697,111710.0,111700.0,0.20269004]
[1756124736917,0.01449013,111710.0,111700.0,0.28957479]
[1756124737380,0.01449013,111710.0,111700.0,0.28857479]
[1756124737597,0.01449013,111710.0,111700.0,0.29057479]
[1756124738944,0.01449013,111710.0,111700.0,0.35480946]
[1756124739296,0.01449013,111710.0,111700.0,0.35580946]
[1756124739501,0.01449013,111710.0,111700.0,0.35380946]
[1756124739710,0.01449013,111710.0,111700.0,0.35280946]
[1756124739906,0.01449013,111710.0,111700.0,0.35480946]
[1756124741377,0.01449013,111710.0,111700.0,0.39482163]
[1756124741622,0.01449013,111710.0,111700.0,0.39582163]
[1756124742099,0.01449013,111710.0,111700.0,1.24923458]
[1756124742516,0.00048042,111710.0,111700.0,1.60742774]
[1756124742695,0.00048042,111710.0,111700.0,1.63433374]
[1756124743075,0.00048042,111710.0,111700.0,1.63233374]
[1756124743484,0.00048042,111710.0,111700.0,0.78092079]
[1756124743687,0.00048042,111710.0,111700.0,1.63533374]
[1756124744045,0.00048042,111710.0,111700.0,1.64943174]
[1756124745344,0.0109,111730.0,111720.0,0.17901897]
[1756124745574,0.01104409,111730.0,111720.0,0.42230372]
[1756124745795,0.01104409,111730.0,111720.0,0.42536372]
[1756124746231,0.01104409,111730.0,111720.0,0.44169548]
[1756124746873,0.01104409,111730.0,111720.0,0.27200372]
[1756124747092,0.01104409,111730.0,111720.0,0.42636372]
[1756124748900,0.01104409,111730.0,111720.0,0.42536372]
[1756124749148,0.01104409,111730.0,111720.0,0.28699443]
[1756124749353,0.01104409,111730.0,111720.0,0.44335443]
[1756124749791,0.01104409,111730.0,111720.0,0.27300372]
[1756124750005,0.01104409,111730.0,111720.0,0.42736372]
[1756124751597,0.01104409,111730.0,111720.0,0.44481274]
[1756124752236,0.01104409,111730.0,111720.0,0.71301274]
[1756124752384,0.01104409,111730.0,111720.0,0.44481274]
[1756124752605,0.01104409,111730.0,111720.0,1.29922569]
[1756124752837,0.01104409,111730.0,111720.0,1.84790311]
[1756124753377,0.01104409,111730.0,111720.0,2.21480111]
[1756124753782,0.01104409,111730.0,111720.0,2.21280111]
[1756124753993,0.01104409,111730.0,111720.0,2.21580111]
[1756124754403,0.01104409,111730.0,111720.0,2.46144111]
[1756124754618,0.01104409,111730.0,111720.0,1.76134816]
[1756124754883,0.01104409,111730.0,111720.0,2.61576111]
[1756124755303,0.01104409,111730.0,111720.0,2.21576111]
[1756124755718,0.01104409,111730.0,111720.0,2.15172557]
[1756124755928,0.01104409,111730.0,111720.0,3.36996696]
[1756124756143,0.01104409,111730.0,111720.0,2.5321534]
[1756124756586,0.01104409,111730.0,111720.0,2.0321534]
[1756124757462,0.01104409,111730.0,111720.0,0.82911262]
[1756124757882,0.01104409,111730.0,111720.0,0.89285649]
[1756124758293,0.01104409,111730.0,111720.0,1.74726944]
[1756124760602,0.01104409,111730.0,111720.0,1.68348557]
[1756124761628,0.01104409,111730.0,111720.0,1.92920557]
[1756124761866,0.01104409,111730.0,111720.0,1.07479262]
[1756124762126,0.01104409,111730.0,111720.0,0.74513918]
[1756124762426,0.01104409,111730.0,111720.0,0.87252118]
[1756124763542,0.01104409,111730.0,111720.0,1.72693413]
[1756124763996,0.01104409,111730.0,111720.0,1.99513413]
[1756124764215,0.01104409,111730.0,111720.0,1.14072118]
[1756124764435,0.01104409,111730.0,111720.0,1.99513413]
[1756124764675,0.01104409,111730.0,111720.0,1.14072118]
[1756124764900,0.01104409,111730.0,111720.0,1.99513413]
[1756124765364,0.01104409,111730.0,111720.0,1.14072118]
[1756124765579,0.01104409,111730.0,111720.0,1.99513413]
[1756124765796,0.01104409,111730.0,111720.0,1.14068118]
[1756124766207,0.01104409,111730.0,111720.0,1.15477718]
[1756124766417,0.01080692,111730.0,111720.0,1.15477718]
[1756124767608,0.01080692,111730.0,111720.0,1.17274718]
[1756124767813,0.01080692,111730.0,111720.0,1.15477718]
[1756124769433,0.01080692,111730.0,111720.0,2.00919013]
[1756124771157,0.01080692,111730.0,111720.0,2.00619013]
[1756124771567,0.01080692,111730.0,111720.0,2.01019013]
[1756124771770,0.01080692,111730.0,111720.0,1.15577718]
[1756124772378,0.01080692,111730.0,111720.0,1.09201062]
[1756124772549,0.01080692,111730.0,111720.0,1.15598465]
[1756124773116,0.01080692,111730.0,111720.0,0.99970465]
[1756124773326,0.01080692,111730.0,111720.0,1.15609465]
[1756124774388,0.01080692,111730.0,111720.0,1.15209465]
[1756124774795,0.01080692,111730.0,111720.0,1.15509465]
[1756124774996,0.01080692,111730.0,111720.0,1.09112062]
[1756124775242,0.01080692,111730.0,111720.0,1.08812062]
[1756124775673,0.01080692,111730.0,111720.0,1.09212062]
[1756124775890,0.01080692,111730.0,111720.0,1.08554062]
[1756124776810,0.01080692,111730.0,111720.0,1.16596845]
[1756124776984,0.01080692,111730.0,111720.0,1.08554062]
[1756124777142,0.01080692,111730.0,111720.0,1.16596845]
[1756124778164,0.01080692,111730.0,111720.0,2.0203814]
[1756124781028,0.00257894,111730.0,111720.0,2.33995357]
[1756124781232,0.00257894,111730.0,111720.0,1.41137053]
[1756124781453,0.00257894,111730.0,111720.0,2.41998348]
[1756124782670,0.00257894,111730.0,111720.0,2.26578348]
[1756124782868,0.00257894,111730.0,111720.0,2.41994348]
[1756124783072,0.00257894,111730.0,111720.0,1.56553053]
[1756124783276,0.00257894,111730.0,111720.0,2.41994348]
[1756124783700,0.00257894,111730.0,111720.0,2.44684248]
[1756124785001,0.00257894,111730.0,111720.0,2.48703298]
[1756124786214,0.00257894,111730.0,111720.0,3.26137602]
[1756124786417,0.00257894,111730.0,111720.0,2.40696307]
[1756124787918,0.00257894,111730.0,111720.0,2.27077307]
[1756124788180,0.00257894,111730.0,111720.0,2.42493307]
[1756124788850,0.00257894,111730.0,111720.0,2.42093307]
[1756124789282,0.00257894,111730.0,111720.0,2.42493307]
[1756124789877,0.00257894,111730.0,111720.0,2.42093307]
[1756124790316,0.00257894,111730.0,111720.0,2.42593307]
[1756124790939,0.00257894,111730.0,111720.0,2.27177307]
[1756124791105,0.00061976,111730.0,111720.0,2.42589307]
[1756124791327,0.00061976,111730.0,111720.0,3.69303901]
[1756124791500,0.00061976,111730.0,111720.0,2.83862606]
[1756124791977,0.00061976,111730.0,111720.0,1.98421311]
[1756124792187,0.00061976,111730.0,111720.0,2.83862606]
[1756124793247,0.00061976,111730.0,111720.0,1.98421311]
[1756124793458,0.00061976,111730.0,111720.0,2.68450606]
[1756124793670,0.00061976,111730.0,111720.0,1.68421311]
[1756124793883,0.00061976,111730.0,111720.0,2.53862606]
[1756124794653,0.00061976,111730.0,111720.0,2.38450606]
[1756124794863,0.00061976,111730.0,111720.0,2.39108606]
[1756124795061,0.00061976,111730.0,111720.0,2.54520606]
[1756124797114,0.00061976,111730.0,111720.0,2.53862606]
[1756124798909,0.00061976,111730.0,111720.0,1.68421311]
[1756124799112,0.00061976,111730.0,111720.0,2.53862606]
[1756124799915,0.00061976,111730.0,111720.0,1.53009311]
[1756124800208,0.00061976,111730.0,111720.0,2.53858606]
[1756124800938,0.00061976,111730.0,111720.0,1.68417311]
[1756124801142,0.00015112,111730.0,111720.0,2.53858606]
[1756124802257,0.00015112,111730.0,111720.0,2.54516606]
[1756124802514,0.00015112,111730.0,111720.0,2.61400606]
[1756124802691,0.00015112,111730.0,111720.0,1.75959311]
[1756124802840,0.00015112,111730.0,111720.0,2.61400606]
[1756124803064,0.00015112,111730.0,111720.0,1.75959311]
[1756124803259,0.00015112,111730.0,111720.0,2.61400606]
[1756124804983,0.00015112,111730.0,111720.0,2.61396606]
[1756124805541,0.00015112,111730.0,111720.0,1.20336311]
[1756124805765,0.00015112,111730.0,111720.0,2.21387606]
[1756124805907,0.00015112,111730.0,111720.0,1.24673012]
[1756124806384,0.00015112,111730.0,111720.0,2.10114307]
[1756124807609,0.00015112,111730.0,111720.0,2.09908307]
[1756124808217,0.00015112,111730.0,111720.0,2.03199357]
[1756124808421,0.00015112,111730.0,111720.0,1.37036452]
[1756124808635,0.00015112,111730.0,111720.0,0.91763153]
[1756124808861,0.00015112,111730.0,111720.0,0.95049201]
[1756124809090,0.00015112,111730.0,111720.0,0.94743201]
[1756124809294,0.00015112,111730.0,111720.0,0.95037201]
[1756124810617,0.00015112,111730.0,111720.0,0.95243201]
[1756124810798,0.00015112,111730.0,111720.0,0.95037201]
[1756124812207,0.00015112,111730.0,111720.0,0.95137201]
[1756124812384,0.00015112,111730.0,111720.0,0.95343201]
[1756124812820,0.00015112,111730.0,111720.0,0.79733201]
[1756124813066,0.00015112,111730.0,111720.0,0.95339201]
[1756124814021,0.00015112,111730.0,111720.0,0.95133201]
[1756124814416,0.00015112,111730.0,111720.0,0.95339201]
[1756124815871,0.00015112,111730.0,111720.0,0.98029301]
[1756124817052,0.14246661,111770.0,111730.0,0.17899082]
[1756124817280,0.17895536,111760.0,111750.0,0.01744902]
[1756124817459,0.17895536,111760.0,111750.0,0.17144902]
[1756124820490,0.19295821,111760.0,111750.0,0.17144902]
[1756124820748,0.19295821,111760.0,111750.0,0.17344902]
[1756124821840,0.21985921,111760.0,111750.0,0.17344902]
[1756124822111,0.25984951,111760.0,111750.0,0.17344902]
[1756124822318,0.24584666,111760.0,111750.0,0.17344902]
[1756124822749,0.21894566,111760.0,111750.0,0.17344902]
[1756124822986,0.21894566,111760.0,111750.0,0.17340902]
[1756124825087,0.21894566,111760.0,111750.0,0.01944902]
[1756124825290,0.23294855,111760.0,111750.0,0.17340902]
[1756124826683,0.23294855,111760.0,111750.0,0.01944902]
[1756124827055,0.23294855,111760.0,111750.0,0.17340902]
[1756124827433,0.23294855,111760.0,111750.0,0.01944902]
[1756124827638,0.23294855,111760.0,111750.0,0.17340902]
[1756124828061,0.23294855,111760.0,111750.0,0.17336902]
[1756124829377,0.23294855,111760.0,111750.0,0.20027102]
[1756124833227,0.23294855,111760.0,111750.0,0.20349102]
[1756124833654,0.23294855,111760.0,111750.0,0.20027102]
[1756124834291,0.22294855,111760.0,111750.0,0.20027102]
[1756124834947,0.22294855,111760.0,111750.0,0.20349102]
[1756124840327,0.22294855,111760.0,111750.0,0.20023102]
[1756124840540,0.22294855,111760.0,111750.0,0.20345102]
[1756124842037,0.22294855,111760.0,111750.0,0.20023102]
[1756124843260,0.22294855,111760.0,111750.0,0.20345102]
[1756124844981,0.20894566,111760.0,111750.0,0.20345102]
[1756124845467,0.20894566,111760.0,111750.0,0.20548102]
[1756124845883,0.20894566,111760.0,111750.0,0.20341102]
[1756124846522,0.72799934,111760.0,111750.0,0.028902]
[1756124846725,0.72799934,111760.0,111750.0,0.04635102]
[1756124847343,0.72799934,111760.0,111750.0,0.04435102]
[1756124847609,0.72799934,111760.0,111750.0,0.04535102]
[1756124848166,0.74200301,111760.0,111750.0,0.04535102]
[1756124848773,0.74199059,111760.0,111750.0,0.04535102]
[1756124849410,0.74198723,111760.0,111750.0,0.04535102]
[1756124849641,0.74198708,111760.0,111750.0,0.04535102]
[1756124849844,0.82887183,111760.0,111750.0,0.04535102]
[1756124851536,0.82887183,111760.0,111750.0,0.001]
[1756124852868,0.83516929,111760.0,111750.0,0.001]
[1756124853082,0.17897091,111750.0,111740.0,0.01744902]
[1756124853286,0.37568306,111750.0,111740.0,0.01744902]
[1756124853952,0.51898693,111740.0,111730.0,0.026908]
[1756124854163,0.68958538,111740.0,111730.0,0.04435702]
[1756124854392,0.68958538,111740.0,111730.0,0.01744902]
[1756124854617,0.69797492,111740.0,111730.0,0.01744902]
[1756124854861,0.78484457,111740.0,111730.0,0.01744902]
[1756124855306,0.77645503,111740.0,111730.0,0.01744902]
[1756124855509,0.51900295,111730.0,111720.0,0.045225]
[1756124855728,0.51900295,111730.0,111720.0,0.047255]
[1756124856652,0.67280295,111730.0,111720.0,0.047255]
[1756124856859,0.77380834,111730.0,111720.0,0.047255]
[1756124857507,0.77380834,111730.0,111720.0,0.06470402]
[1756124857744,0.77380834,111730.0,111720.0,0.06570402]
[1756124857949,0.63488167,111730.0,111720.0,0.06570402]
[1756124864910,0.62087474,111730.0,111720.0,0.06570402]
[1756124865152,0.00012881,111730.0,111720.0,0.1548265]
[1756124865416,0.00012881,111730.0,111720.0,0.3360832]
[1756124865657,0.3316631,111760.0,111730.0,0.19643999]
[1756124865894,0.17897113,111750.0,111740.0,0.15376]
[1756124866130,0.17897113,111750.0,111740.0,0.15699]
[1756124866380,0.17897113,111750.0,111740.0,0.185893]
[1756124866568,0.24342217,111750.0,111740.0,0.185893]
[1756124867784,0.24342217,111750.0,111740.0,0.032133]
[1756124868640,0.24342217,111750.0,111740.0,0.033133]
[1756124868849,0.24342217,111750.0,111740.0,0.031133]
[1756124869057,0.41114666,111750.0,111740.0,0.04858202]
[1756124869239,0.41114666,111750.0,111740.0,0.05058202]
[1756124869731,0.25742666,111750.0,111740.0,0.05058202]
[1756124870565,0.20636324,111750.0,111740.0,0.05058202]
[1756124870954,0.19235875,111750.0,111740.0,0.05058202]
[1756124875027,0.1779031,111760.0,111750.0,0.01744902]
[1756124875028,0.51895605,111760.0,111750.0,0.01744902]
[1756124875253,0.49647099,111770.0,111750.0,0.17635902]
[1756124875506,0.4826106,111770.0,111750.0,0.17635902]
[1756124875708,0.4826106,111770.0,111760.0,0.02067902]
[1756124875709,0.54479465,111770.0,111760.0,0.02067902]
[1756124875922,0.54479465,111770.0,111760.0,0.02267902]
[1756124876347,0.34014399,111770.0,111760.0,0.04958002]
[1756124877210,0.34014399,111770.0,111760.0,0.22853492]
[1756124877211,0.00014399,111770.0,111760.0,0.22853492]
[1756124877786,0.00014399,111770.0,111760.0,0.04958002]
[1756124878229,0.00014399,111770.0,111760.0,0.22853492]
[1756124878451,0.00014399,111770.0,111760.0,0.04958002]